fUST/lending_fUST_20250925
["ID","MTS","AMOUNT","RATE_DAILY","PERIOD"]
[387646352,1758796246996,-1892.823968,0.00023,7]
[387646354,1758796247008,-151.0,0.00023,7]
[387646356,1758796247020,-1892.823968,0.00023,7]
[387646358,1758796247032,-1892.823968,0.00023,7]
[387646361,1758796247044,-1892.823968,0.00023,7]
[387646363,1758796247056,-156.2739526,0.00023014,2]
[387646365,1758796247069,-738.62660331,0.00023116,2]
[387646368,1758796247081,-480.0,0.00023182,2]
[387646370,1758796247094,-480.0,0.00023182,2]
[387646372,1758796247105,-3076.22,0.00023183,2]
[387646374,1758796247114,-213.49417476,0.000232,2]
[387646387,1758796247222,-746.62,0.00023287,2]
[387646389,1758796247236,-421.50544529,0.00023433,2]
[387646391,1758796247245,-1686.02178114,0.00023433,2]
[387646393,1758796247254,-3789.75545856,0.00023438,2]
[387646395,1758796247264,-480.0,0.00023456,2]
[387646397,1758796247273,-480.0,0.00023456,2]
[387646399,1758796247283,-3076.22,0.00023457,2]
[387646401,1758796247295,-151.0,0.00023457,7]
[387646403,1758796247305,-151.0,0.00023457,7]
[387646405,1758796247314,-151.0,0.00023457,7]
[387646407,1758796247324,-151.0,0.00023457,7]
[387646409,1758796247335,-151.0,0.00023457,7]
[387646411,1758796247344,-719.054371,0.00023457,7]
[387646413,1758796247354,-719.054371,0.00023457,7]
[387646415,1758796247364,-719.054371,0.00023457,7]
[387646417,1758796247374,-719.054371,0.00023457,7]
[387646419,1758796247383,-668.591666,0.00023457,7]
[387646421,1758796247392,-668.591666,0.00023457,7]
[387646423,1758796247401,-668.591666,0.00023457,7]
[387646425,1758796247411,-151.0,0.00023457,7]
[387646427,1758796247420,-668.591666,0.00023457,7]
[387646429,1758796247429,-151.0,0.00023457,7]
[387646431,1758796247439,-151.0,0.00023457,7]
[387646433,1758796247448,-151.0,0.00023457,7]
[387646435,1758796247458,-151.0,0.00023457,7]
[387646437,1758796247467,-151.0,0.00023457,7]
[387646439,1758796247477,-151.0,0.00023457,7]
[387646441,1758796247487,-151.0,0.00023457,7]
[387646443,1758796247496,-151.0,0.00023457,7]
[387646445,1758796247506,-151.0,0.00023457,7]
[387646447,1758796247515,-151.0,0.00023457,7]
[387646449,1758796247524,-268.99134,0.00023457,7]
[387646451,1758796247533,-151.0,0.00023457,7]
[387646453,1758796247543,-151.0,0.00023457,7]
[387646455,1758796247553,-151.0,0.00023472,4]
[387646457,1758796247563,-3685.76385583,0.000237,14]
[387646459,1758796247573,-369.25478094,0.0002373,2]
[387646461,1758796247582,-480.0,0.0002373,2]
[387646463,1758796247591,-3076.22,0.00023731,2]
[387646465,1758796247601,-2091.92,0.00024,2]
[387646467,1758796247610,-417.15472785,0.00024,3]
[387646469,1758796247619,-661.44,0.00024,14]
[387646470,1758796247629,-1164.2450247,0.00024,2]
[387646472,1758796247638,-480.0,0.00024004,2]
[387646474,1758796247647,-3076.22,0.00024005,2]
[387646476,1758796247656,-999.424,0.00024063,5]
[387646478,1758796247665,-159.508238,0.00024063,7]
[387646480,1758796247674,-151.0,0.00024063,7]
[387646482,1758796247684,-151.0,0.00024063,7]
[387646484,1758796247694,-151.0,0.00024063,7]
[387646486,1758796247703,-151.0,0.00024063,7]
[387646488,1758796247713,-151.0,0.00024063,7]
[387646490,1758796247721,-151.0,0.00024063,7]
[387646492,1758796247732,-194.409939,0.00024063,7]
[387646494,1758796247741,-194.409939,0.00024063,7]
[387646496,1758796247751,-194.409939,0.00024063,7]
[387646498,1758796247760,-194.409939,0.00024063,7]
[387646500,1758796247769,-229.462912,0.00024063,7]
[387646502,1758796247779,-229.462912,0.00024063,7]
[387646504,1758796247788,-229.462912,0.00024063,7]
[387646506,1758796247797,-229.462912,0.00024063,7]
[387646508,1758796247807,-151.0,0.00024063,7]
[387646510,1758796247816,-151.0,0.00024063,7]
[387646512,1758796247826,-151.0,0.00024063,7]
[387646514,1758796247835,-151.0,0.00024063,7]
[387646516,1758796247845,-151.0,0.00024063,7]
[387646518,1758796247854,-151.0,0.00024063,7]
[387646520,1758796247863,-151.0,0.00024063,7]
[387646522,1758796247872,-151.0,0.00024063,7]
[387646524,1758796247881,-151.0,0.00024063,7]
[387646526,1758796247890,-151.0,0.00024063,7]
[387646528,1758796247899,-151.0,0.00024063,7]
[387646530,1758796247909,-151.0,0.00024063,7]
[387646532,1758796247919,-252.112038,0.00024063,7]
[387646534,1758796247928,-151.0,0.00024063,7]
[387646536,1758796247937,-313.771529,0.00024063,7]
[387646538,1758796247947,-313.771529,0.00024063,7]
[387646540,1758796247957,-313.771529,0.00024063,7]
[387646542,1758796247966,-313.771529,0.00024063,7]
[387646543,1758796247975,-151.0,0.00024063,7]
[387646545,1758796247989,-216.968045,0.00024063,7]
[387646547,1758796247998,-738.62660331,0.00024187,2]
[387646549,1758796248008,-1408.73101619,0.00024189,2]
[387646551,1758796248018,-480.0,0.00024278,2]
[387646553,1758796248028,-3076.22,0.00024279,2]
[387646555,1758796248038,-591.0,0.00024371,7]
[387646557,1758796248047,-168.0,0.00024471,2]
[387646559,1758796248057,-2000.0,0.000245,2]
[387646561,1758796248067,-213.49417476,0.00024518,2]
[387646562,1758796248077,-168.0,0.00024531,2]
[387646563,1758796248087,-480.0,0.00024552,2]
[387646564,1758796248097,-3076.22,0.00024553,2]
[387646565,1758796248107,-150.0,0.00024618,2]
[387646566,1758796248117,-9971.68120309,0.0002465,2]
[387646567,1758796248127,-200.0,0.00024658,15]
[387646568,1758796248137,-151.0,0.00024658,2]
[387646569,1758796248147,-246.33756732,0.00024658,2]
[387646570,1758796248157,-151.0,0.00024658,2]
[387646571,1758796248169,-151.0,0.00024658,2]
[387646572,1758796248179,-151.0,0.00024658,2]
[387646573,1758796248188,-210.16485027,0.00024658,2]
[387646574,1758796248199,-151.0,0.00024658,2]
[387646575,1758796248209,-151.0,0.00024658,2]
[387646576,1758796248218,-158.36051303,0.00024658,2]
[387646577,1758796248228,-151.0,0.00024658,2]
[387646578,1758796248239,-151.0,0.00024658,2]
[387646579,1758796248248,-151.0,0.00024658,2]
[387646580,1758796248258,-151.96718138,0.00024658,2]
[387646581,1758796248268,-198.0,0.00024658,2]
[387646582,1758796248277,-151.0,0.00024658,2]
[387646583,1758796248289,-151.0,0.00024658,2]
[387646584,1758796248299,-151.0,0.00024658,2]
[387646585,1758796248308,-155.81474067,0.00024658,2]
[387646586,1758796248318,-152.22216253,0.00024658,2]
[387646587,1758796248327,-151.0,0.00024658,2]
[387646588,1758796248337,-151.0,0.00024658,2]
[387646589,1758796248347,-151.0,0.00024658,2]
[387646590,1758796248356,-151.0,0.00024658,2]
[387646591,1758796248366,-151.0,0.00024658,2]
[387646592,1758796248376,-151.0,0.00024658,2]
[387646593,1758796248386,-151.0,0.00024658,2]
[387646594,1758796248396,-1024.8318767,0.0002473,2]
[387646595,1758796248405,-2728.3039287,0.00024796,2]
[387646596,1758796248415,-480.0,0.00024826,2]
[387646598,1758796248424,-3076.22,0.00024827,2]
[387646600,1758796248434,-168.0,0.00024898,2]
[387646601,1758796248444,-433.00973525,0.000249,2]
[387646603,1758796248454,-151.0,0.000249,7]
[387646605,1758796248463,-151.0,0.000249,7]
[387646607,1758796248473,-151.0,0.000249,7]
[387646609,1758796248484,-151.0,0.000249,7]
[387646611,1758796248494,-235.869179,0.000249,7]
[387646613,1758796248503,-235.869179,0.000249,7]
[387646615,1758796248512,-235.869179,0.000249,7]
[387646617,1758796248522,-235.869179,0.000249,7]
[387646619,1758796248531,-151.0,0.000249,7]
[387646621,1758796248541,-151.0,0.000249,7]
[387646623,1758796248550,-151.0,0.000249,7]
[387646625,1758796248560,-151.0,0.000249,7]
[387646627,1758796248569,-151.0,0.000249,7]
[387646629,1758796248579,-151.0,0.000249,7]
[387646631,1758796248589,-151.0,0.000249,7]
[387646633,1758796248599,-151.0,0.000249,7]
[387646635,1758796248608,-151.0,0.000249,7]
[387646637,1758796248617,-151.0,0.000249,7]
[387646639,1758796248626,-151.0,0.000249,7]
[387646641,1758796248635,-151.0,0.000249,7]
[387646643,1758796248645,-151.0,0.000249,7]
[387646645,1758796248654,-43814.77199451,0.000249,2]
[387646647,1758796248665,-153.326372,0.000249,7]
[387646649,1758796248674,-153.326372,0.000249,7]
[387646651,1758796248683,-151.0,0.000249,7]
[387646653,1758796248692,-153.326372,0.000249,7]
[387646655,1758796248702,-151.0,0.000249,7]
[387646657,1758796248711,-153.326372,0.000249,7]
[387646659,1758796248720,-151.0,0.000249,7]
[387646660,1758796248730,-152.419463,0.000249,7]
[387646663,1758796248741,-151.0,0.000249,7]
[387646665,1758796248750,-194.409939,0.000249,7]
[387646667,1758796248760,-194.409939,0.000249,7]
[387646669,1758796248770,-194.409939,0.000249,7]
[387646670,1758796248780,-194.409939,0.000249,7]
[387646672,1758796248790,-229.462912,0.000249,7]
[387646674,1758796248800,-229.462912,0.000249,7]
[387646676,1758796248809,-229.462912,0.000249,7]
[387646678,1758796248819,-229.462912,0.000249,7]
[387646680,1758796248828,-151.0,0.000249,7]
[387646682,1758796248838,-151.0,0.000249,7]
[387646684,1758796248847,-151.0,0.000249,7]
[387646686,1758796248856,-151.0,0.000249,7]
[387646688,1758796248865,-151.0,0.000249,7]
[387646690,1758796248875,-151.0,0.000249,7]
[387646692,1758796248885,-151.0,0.000249,7]
[387646694,1758796248895,-151.0,0.000249,7]
[387646696,1758796248904,-151.0,0.000249,7]
[387646698,1758796248914,-151.0,0.000249,7]
[387646700,1758796248923,-151.0,0.000249,7]
[387646702,1758796248933,-151.0,0.000249,7]
[387646704,1758796248943,-151.0,0.000249,7]
[387646706,1758796248952,-313.771529,0.000249,7]
[387646708,1758796248962,-151.0,0.000249,7]
[387646710,1758796248972,-313.771529,0.000249,7]
[387646712,1758796248983,-151.0,0.000249,7]
[387646714,1758796248992,-313.771529,0.000249,7]
[387646716,1758796249002,-313.771529,0.000249,7]
[387646718,1758796249012,-151.0,0.000249,7]
[387646720,1758796249022,-417.15472785,0.000249,7]
[387646722,1758796249032,-151.0,0.000249,7]
[387646724,1758796249041,-151.0,0.000249,7]
[387646726,1758796249051,-151.0,0.000249,7]
[387646728,1758796249061,-719.054371,0.000249,7]
[387646730,1758796249071,-719.054371,0.000249,7]
[387646732,1758796249081,-719.054371,0.000249,7]
[387646741,1758796249164,-719.054371,0.000249,7]
[387646743,1758796249174,-668.591666,0.000249,7]
[387646745,1758796249184,-668.591666,0.000249,7]
[387646747,1758796249194,-668.591666,0.000249,7]
[387646749,1758796249203,-151.0,0.000249,7]
[387646751,1758796249212,-668.591666,0.000249,7]
[387646753,1758796249222,-151.0,0.000249,7]
[387646755,1758796249232,-151.0,0.000249,7]
[387646757,1758796249242,-151.0,0.000249,7]
[387646759,1758796249252,-151.0,0.000249,7]
[387646761,1758796249261,-151.0,0.000249,7]
[387646763,1758796249271,-151.0,0.000249,7]
[387646765,1758796249280,-30487.74922624,0.000249,2]
[387646997,1758796251621,-0.01669299,0.00019343,2]
[387647000,1758796251637,-479.98330701,0.00019343,2]
[387647002,1758796251647,-147.46552737,0.00019343,2]
[387647004,1758796251658,-332.53447263,0.00019343,2]
[387647007,1758796251669,-502.11820812,0.00019345,2]
[387647009,1758796251678,-197.051142,0.00022998,7]
[387647011,1758796251688,-151.0,0.00022998,7]
[387647013,1758796251697,-151.0,0.00022998,7]
[387647015,1758796251707,-197.051142,0.00022998,7]
[387647017,1758796251716,-142644.30210369,0.000249,2]
[387647020,1758796251737,-839.44517487,0.000249,2]
[387647022,1758796251748,-9627.13432,0.000249,2]
[387647043,1758796251935,-480.0,0.00019345,2]
[387647045,1758796251946,-480.0,0.00019346,2]
[387647047,1758796251955,-480.0,0.0001962,2]
[387647049,1758796251965,-151.0,0.00022998,7]
[387647051,1758796251974,-5964.99234372,0.000249,2]
[387647054,1758796251992,-480.0,0.00019343,2]
[387647056,1758796252001,-7090.17971924,0.000249,2]
[387647069,1758796252116,-327.1142564,0.00019346,2]
[387647072,1758796252127,-152.8857436,0.00019346,2]
[387647073,1758796252136,-480.0,0.00019617,2]
[387647076,1758796252146,-480.0,0.0001962,2]
[387647078,1758796252156,-278816.43731104,0.000249,2]
[387647080,1758796252168,-22265.63415705,0.000249,2]
[387647082,1758796252180,-1991.35229215,0.000249,2]
[387647084,1758796252189,-151.0,0.000249,7]
[387647086,1758796252199,-151.0,0.000249,7]
[387647088,1758796252208,-238.276661,0.000249,7]
[387647090,1758796252217,-151.0,0.000249,7]
[387647092,1758796252226,-151.0,0.000249,7]
[387647094,1758796252237,-151.0,0.000249,7]
[387647096,1758796252247,-152.625112,0.000249,7]
[387647098,1758796252256,-151.0,0.000249,7]
[387647100,1758796252265,-374.66184,0.000249,7]
[387647102,1758796252274,-152.625112,0.000249,7]
[387647104,1758796252284,-374.66184,0.000249,7]
[387647106,1758796252298,-151.0,0.000249,7]
[387647108,1758796252309,-152.625112,0.000249,7]
[387647110,1758796252318,-374.66184,0.000249,7]
[387647112,1758796252328,-151.0,0.000249,7]
[387647114,1758796252339,-67.25737024,0.000249,7]
[387647116,1758796252351,-85.36774176,0.000249,7]
[387647118,1758796252360,-374.66184,0.000249,7]
[387647120,1758796252372,-151.0,0.000249,7]
[387647122,1758796252382,-151.0,0.000249,7]
[387647124,1758796252391,-151.0,0.000249,7]
[387647126,1758796252401,-151.0,0.000249,7]
[387647128,1758796252410,-151.0,0.000249,7]
[387647130,1758796252419,-151.0,0.000249,7]
[387647133,1758796252430,-1892.823968,0.000249,7]
[387647135,1758796252439,-151.0,0.000249,7]
[387647136,1758796252448,-1892.823968,0.000249,7]
[387647139,1758796252458,-1050.21565266,0.000249,7]
[387647141,1758796252470,-842.60831534,0.000249,7]
[387647143,1758796252479,-1892.823968,0.000249,7]
[387647145,1758796252490,-151.0,0.000249,7]
[387647147,1758796252499,-151.0,0.000249,7]
[387647149,1758796252509,-151.0,0.000249,7]
[387647153,1758796252518,-151.0,0.000249,7]
[387647154,1758796252601,-1143.262227,0.000249,7]
[387647155,1758796252611,-1143.262227,0.000249,7]
[387647156,1758796252620,-151.0,0.000249,7]
[387647157,1758796252629,-211.05225744,0.000249,7]
[387647158,1758796252641,-5.21727156,0.000249,7]
[387647159,1758796252650,-151.0,0.000249,7]
[387647160,1758796252659,-345.78272844,0.000249,7]
[387647161,1758796252671,-797.47949856,0.000249,7]
[387647162,1758796252680,-216.269529,0.000249,7]
[387647163,1758796252689,-1143.262227,0.000249,7]
[387647164,1758796252699,-151.0,0.000249,7]
[387647165,1758796252708,-151.0,0.000249,7]
[387647166,1758796252717,-1143.262227,0.000249,7]
[387647167,1758796252726,-1143.262227,0.000249,7]
[387647168,1758796252738,-216.269529,0.000249,7]
[387647169,1758796252747,-71.47326858,0.000249,7]
[387647170,1758796252761,-144.79626042,0.000249,7]
[387647171,1758796252771,-1042.53854036,0.000249,7]
[387647172,1758796252789,-480.0,0.00019894,2]
[387647173,1758796252799,-100.72368664,0.000249,7]
[387647174,1758796252808,-151.0,0.000249,7]
[387647175,1758796252817,-216.269529,0.000249,7]
[387647176,1758796252826,-1143.262227,0.000249,7]
[387647177,1758796252836,-151.0,0.000249,7]
[387647178,1758796252845,-216.269529,0.000249,7]
[387647179,1758796252854,-216.269529,0.000249,7]
[387647180,1758796252864,-151.0,0.000249,7]
[387647181,1758796252873,-151.0,0.000249,7]
[387647182,1758796252882,-216.269529,0.000249,7]
[387647183,1758796252892,-151.0,0.000249,7]
[387647184,1758796252902,-151.0,0.000249,7]
[387647185,1758796252912,-151.0,0.000249,7]
[387647186,1758796252921,-151.0,0.000249,7]
[387647187,1758796252930,-158.503176,0.000249,7]
[387647188,1758796252940,-151.0,0.000249,7]
[387647189,1758796252949,-151.0,0.000249,7]
[387647190,1758796252959,-151.0,0.000249,7]
[387647191,1758796252968,-151.0,0.000249,7]
[387647192,1758796252978,-335.093257,0.000249,7]
[387647193,1758796252987,-335.093257,0.000249,7]
[387647194,1758796252997,-335.093257,0.000249,7]
[387647196,1758796253006,-335.093257,0.000249,7]
[387647198,1758796253015,-156.270192,0.000249,7]
[387647199,1758796253024,-335.093257,0.000249,7]
[387647200,1758796253034,-156.270192,0.000249,7]
[387647202,1758796253044,-335.093257,0.000249,7]
[387647203,1758796253053,-156.270192,0.000249,7]
[387647205,1758796253063,-156.270192,0.000249,7]
[387647206,1758796253072,-335.093257,0.000249,7]
[387647208,1758796253083,-0.49798435,0.000249,7]
[387647224,1758796368672,-300.0,0.0001934,2]
[387647225,1758796368701,-1200.0,0.0001934,2]
[387647226,1758796368730,-279.34,0.00019342,3]
[387647227,1758796368759,-838.02,0.00019342,3]
[387647228,1758796368787,-480.0,0.00019343,2]
[387647229,1758796368816,-480.0,0.00019343,2]
[387647230,1758796368844,-482.63016143,0.00019343,2]
[387647231,1758796368873,-501.67798239,0.00019343,2]
[387647232,1758796368902,-341.76113108,0.00019343,2]
[387647234,1758796379803,-3130.91311662,0.00019243,2]
[387647235,1758796390101,-3738.18376676,0.00019243,2]
[387647236,1758796390130,-300.0,0.00019342,2]
[387647237,1758796390159,-480.0,0.00019342,2]
[387647238,1758796390188,-472.91615693,0.00019342,2]
[387647239,1758796390959,-17.81015262,0.00019342,2]
[387647240,1758796390987,-480.0,0.00019343,2]
[387647241,1758796391085,-480.0,0.00019343,2]
[387647242,1758796391117,-480.0,0.00019343,2]
[387647243,1758796391145,-480.0,0.00019343,2]
[387647244,1758796391176,-480.0,0.00019343,2]
[387647245,1758796391206,-480.0,0.00019343,2]
[387647246,1758796391234,-444.87995992,0.00019343,2]
[387647247,1758796391263,-480.0,0.00019343,2]
[387647248,1758796391290,-480.0,0.00019343,2]
[387647249,1758796391317,-488.03606376,0.00019343,2]
[387647250,1758796391465,-480.0,0.00019343,2]
[387647251,1758796391494,-480.0,0.00019343,2]
[387647252,1758796391523,-480.0,0.00019343,2]
[387647253,1758796391551,-480.0,0.00019343,2]
[387647254,1758796391579,-487.82382391,0.00019343,2]
[387647255,1758796391607,-480.0,0.00019343,2]
[387647256,1758796391639,-480.0,0.00019343,2]
[387647257,1758796391669,-566.4,0.00019343,2]
[387647258,1758796391697,-480.0,0.00019343,2]
[387647259,1758796391725,-480.0,0.00019343,2]
[387647260,1758796400102,-480.0,0.00019343,2]
[387647261,1758796400130,-480.0,0.00019343,2]
[387647262,1758796400158,-480.0,0.00019343,2]
[387647263,1758796400184,-480.0,0.00019343,2]
[387647264,1758796400215,-480.0,0.00019343,2]
[387647265,1758796400436,-616.17951637,0.00019343,2]
[387647266,1758796409836,-480.0,0.00019343,2]
[387647267,1758796409867,-272.35903274,0.00019343,2]
[387647268,1758796410120,-1504.71806548,0.00019343,2]
[387647269,1758796419770,-485.80264955,0.00019342,2]
[387647270,1758796419800,-480.0,0.00019342,2]
[387647271,1758796419828,-480.0,0.00019343,2]
[387647272,1758796419856,-480.0,0.00019343,2]
[387647273,1758796419885,-516.04943425,0.00019343,2]
[387647274,1758796419912,-480.0,0.00019343,2]
[387647275,1758796420160,-3009.43613096,0.00019343,2]
[387647276,1758796429811,-173.83302612,0.00019251,2]
[387647277,1758796429840,-480.0,0.00019342,2]
[387647278,1758796429878,-480.0,0.00019343,2]
[387647279,1758796429908,-480.0,0.00019343,2]
[387647280,1758796429939,-2791.20620968,0.00019343,2]
[387647281,1758796430102,-1189.9315284,0.00019343,2]
[387647282,1758796430131,-480.0,0.00019345,2]
[387647283,1758796430160,-480.0,0.00019345,2]
[387647284,1758796430189,-480.0,0.00019345,2]
[387647285,1758796430216,-480.0,0.00019345,2]
[387647286,1758796430244,-480.0,0.00019345,2]
[387647287,1758796430271,-480.0,0.00019345,2]
[387647288,1758796430298,-480.0,0.00019345,2]
[387647289,1758796430326,-420.1469432,0.00019345,2]
[387647290,1758796436906,-59.8530568,0.00019345,2]
[387647291,1758796436930,-358.8248446,0.00019345,2]
[387647292,1758796439823,-295.42441304,0.00019343,2]
[387647293,1758796439851,-240.13998335,0.00019345,2]
[387647294,1758796439879,-480.0,0.00019345,2]
[387647295,1758796439907,-480.0,0.00019345,2]
[387647296,1758796439936,-480.0,0.00019345,2]
[387647297,1758796439964,-480.0,0.00019345,2]
[387647298,1758796439992,-2120.83120722,0.00019345,2]
[387647299,1758796440109,-847.21879278,0.00019345,2]
[387647300,1758796440138,-480.0,0.00019346,2]
[387647301,1758796440168,-480.0,0.00019346,2]
[387647302,1758796440198,-480.0,0.00019346,2]
[387647303,1758796440227,-480.0,0.00019346,2]
[387647304,1758796440259,-480.0,0.00019346,2]
[387647305,1758796440289,-480.0,0.00019346,2]
[387647306,1758796440385,-480.0,0.00019346,2]
[387647307,1758796440416,-480.0,0.00019346,2]
[387647308,1758796440448,-145.57241444,0.00019346,2]
[387647309,1758796449851,-505.10631192,0.00019342,2]
[387647310,1758796449880,-158.15226016,0.00019343,2]
[387647311,1758796449907,-480.0,0.00019343,2]
[387647312,1758796449935,-480.0,0.00019343,2]
[387647313,1758796449964,-334.42758556,0.00019346,2]
[387647314,1758796449992,-480.0,0.00019346,2]
[387647315,1758796450022,-553.69,0.00019346,2]
[387647316,1758796450051,-480.0,0.00019346,2]
[387647317,1758796450078,-480.0,0.00019346,2]
[387647318,1758796450107,-480.0,0.00019347,2]
[387647319,1758796450203,-412.70178901,0.00019351,2]
[387647320,1758796450389,-500.0,0.00019351,2]
[387647321,1758796450419,-500.0,0.00019351,2]
[387647322,1758796450450,-500.0,0.00019351,2]
[387647323,1758796450481,-500.0,0.00019351,2]
[387647324,1758796450511,-500.0,0.00019351,2]
[387647325,1758796450541,-463.68816464,0.00019351,2]
[387647326,1758796450575,-500.0,0.00019351,2]
[387647327,1758796450606,-500.0,0.00019351,2]
[387647328,1758796450638,-500.0,0.00019351,2]
[387647329,1758796450670,-500.0,0.00019351,2]
[387647330,1758796480137,-480.0,0.00019343,2]
[387647331,1758796480166,-480.0,0.00019343,2]
[387647332,1758796480196,-482.70836716,0.00019343,2]
[387647333,1758796480225,-480.0,0.00019343,2]
[387647334,1758796480253,-565.28491788,0.00019343,2]
[387647335,1758796480282,-480.0,0.00019343,2]
[387647336,1758796480311,-480.0,0.00019343,2]
[387647337,1758796480338,-480.0,0.00019343,2]
[387647338,1758796480370,-480.0,0.00019345,2]
[387647339,1758796480398,-480.0,0.00019346,2]
[387647340,1758796480582,-3804.83251329,0.00019351,2]
[387647341,1758796480612,-500.0,0.00019351,2]
[387647342,1758796480705,-500.0,0.00019351,2]
[387647343,1758796480791,-500.0,0.00019351,2]
[387647344,1758796480821,-500.0,0.00019351,2]
[387647345,1758796480848,-174.02191911,0.00019351,2]
[387647346,1758796480879,-500.0,0.00019351,2]
[387647347,1758796480909,-500.0,0.00019351,2]
[387647348,1758796480939,-500.0,0.00019351,2]
[387647349,1758796480969,-500.0,0.00019351,2]
[387647350,1758796480998,-224.79937197,0.00019351,2]
[387647351,1758796481031,-500.0,0.00019351,2]
[387647352,1758796481060,-450.0,0.00019351,2]
[387647353,1758796482651,480.0,0.00019343,2]
[387647354,1758796485896,225.254528,0.00019343,2]
[387647355,1758796486428,480.0,0.00019345,2]
[387647357,1758796487896,117.11288984,0.00019343,2]
[387647358,1758796487922,362.88711016,0.00019343,2]
[387647359,1758796488022,500.0,0.00019343,2]
[387647360,1758796489908,480.0,0.00019343,2]
[387647361,1758796490062,554.21502908,0.00019343,2]
[387647362,1758796491717,480.0,0.00019343,2]
[387647363,1758796491745,480.0,0.00019343,2]
[387647364,1758796493374,480.0,0.00019342,2]
[387647365,1758796494165,480.0,0.00019343,2]
[387647366,1758796498788,480.0,0.00019345,2]
[387647367,1758796499159,500.0,0.00019343,2]
[387647368,1758796499520,500.0,0.00019343,2]
[387647369,1758796500077,480.0,0.00019342,2]
[387647370,1758796500949,500.0,0.00019343,2]
[387647371,1758796501284,500.0,0.00019344,2]
[387647372,1758796501670,500.0,0.00019345,2]
[387647373,1758796501712,300.0,0.00019351,2]
[387647374,1758796502002,500.0,0.00019345,2]
[387647375,1758796502244,500.0,0.00019345,2]
[387647376,1758796502627,500.0,0.00019345,2]
[387647377,1758796503038,500.0,0.00019346,2]
[387647378,1758796503282,422.90786076,0.00019346,2]
[387647379,1758796503306,77.09213924,0.00019346,2]
[387647380,1758796503624,500.0,0.00019348,2]
[387647381,1758796503921,500.0,0.00019348,2]
[387647382,1758796504595,500.0,0.0001935,2]
[387647383,1758796504871,500.0,0.00019351,2]
[387647384,1758796505377,184.08487511,0.00019351,2]
[387647385,1758796505507,532.33934526,0.00019343,2]
[387647386,1758796505577,500.0,0.00019351,2]
[387647387,1758796506001,500.0,0.00019351,2]
[387647388,1758796506325,500.0,0.00019351,2]
[387647389,1758796506642,224.82191932,0.00019351,2]
[387647390,1758796508743,1200.0,0.00019351,2]
[387647391,1758796512158,480.0,0.00019342,2]
[387647392,1758796513799,500.0,0.00019351,2]
[387647393,1758796513845,644.84226013,0.00019351,2]
[387647394,1758796513873,480.0,0.00019345,2]
[387647395,1758796516026,480.0,0.00019343,2]
[387647396,1758796519949,480.0,0.00019346,2]
[387647397,1758796520582,480.0,0.00019342,2]
[387647398,1758796525799,480.0,0.00019343,2]